Workbook

Sheet Sheet1
A1: 0 | B1: 0 | C1: 0 | D1: 1 | F1: Translate matrix | O1: =MMULT(A1:D1,$J$17:$M$20) -> -5 | P1: -5 | Q1: 43.84 | R1: 1 | S1: 20 | T1: =$S$1*O1/Q1 -> -2.281021898 | U1: =$S$1*P1/Q1 -> -2.281021898
A2: 0 | B2: 1 | C2: 0 | D2: 1 | F2: 1 | G2: 0 | H2: 0 | I2: 0 | O2: =MMULT(A2:D2,$J$17:$M$20) -> -5 | P2: 5 | Q2: 43.84 | R2: 1 | T2: -2.281021898 | U2: 2.281021898
A3: 1 | B3: 1 | C3: 0 | D3: 1 | F3: 0 | G3: 1 | H3: 0 | I3: 0 | O3: =MMULT(A3:D3,$J$17:$M$20) -> 5 | P3: 5 | Q3: 43.84 | R3: 1 | T3: 2.281021898 | U3: 2.281021898
A4: 1 | B4: 0 | C4: 0 | D4: 1 | F4: 0 | G4: 0 | H4: 1 | I4: 0 | O4: =MMULT(A4:D4,$J$17:$M$20) -> 5 | P4: -5 | Q4: 43.84 | R4: 1 | T4: 2.281021898 | U4: -2.281021898
A5: 0 | B5: 0 | C5: 0 | D5: 1 | F5: -0.5 | G5: -0.5 | H5: -0.5 | I5: 1 | O5: =MMULT(A5:D5,$J$17:$M$20) -> -5 | P5: -5 | Q5: 43.84 | R5: 1 | T5: -2.281021898 | U5: -2.281021898
A6: 0 | B6: 0 | C6: 1 | D6: 1 | F6: Scale matrix | G6: 10 | H6: 360 | J6: mult | O6: =MMULT(A6:D6,$J$17:$M$20) -> -5 | P6: -5 | Q6: 53.84 | R6: 1 | T6: -1.857355126 | U6: -1.857355126
A7: 0 | B7: 1 | C7: 1 | D7: 1 | F7: =G6 -> 10 | G7: 0 | H7: 0 | I7: 0 | J7: =MMULT(F2:I5,F7:I10) -> 10 | K7: 0 | L7: 0 | M7: 0 | O7: =MMULT(A7:D7,$J$17:$M$20) -> -5 | P7: 5 | Q7: 53.84 | R7: 1 | T7: -1.857355126 | U7: 1.857355126
A8: 1 | B8: 1 | C8: 1 | D8: 1 | F8: 0 | G8: =G6 -> 10 | H8: 0 | I8: 0 | J8: 0 | K8: 10 | L8: 0 | M8: 0 | O8: =MMULT(A8:D8,$J$17:$M$20) -> 5 | P8: 5 | Q8: 53.84 | R8: 1 | T8: 1.857355126 | U8: 1.857355126
A9: 1 | B9: 0 | C9: 1 | D9: 1 | F9: 0 | G9: 0 | H9: =G6 -> 10 | I9: 0 | J9: 0 | K9: 0 | L9: 10 | M9: 0 | O9: =MMULT(A9:D9,$J$17:$M$20) -> 5 | P9: -5 | Q9: 53.84 | R9: 1 | T9: 1.857355126 | U9: -1.857355126
A10: 0 | B10: 0 | C10: 1 | D10: 1 | F10: 0 | G10: 0 | H10: 0 | I10: 1 | J10: -5 | K10: -5 | L10: -5 | M10: 1 | O10: =MMULT(A10:D10,$J$17:$M$20) -> -5 | P10: -5 | Q10: 53.84 | R10: 1 | T10: -1.857355126 | U10: -1.857355126
F11: Rotate matrix | G11: =H11/360*2*PI() -> 6.283185307 | H11: 360 | J11: mmult | O11: =MMULT(A11:D11,$J$17:$M$20) -> 
A12: 0 | B12: 1 | C12: 0 | D12: 1 | F12: =COS(G11) -> 1 | G12: 0 | H12: =SIN(G11) -> -2.45029691e-16 | I12: 0 | J12: =MMULT(J7:M10,F12:I15) -> 10 | K12: 0 | L12: -2.45029691e-15 | M12: 0 | O12: =MMULT(A12:D12,$J$17:$M$20) -> -5 | P12: 5 | Q12: 43.84 | R12: 1 | T12: =$S$1*O12/Q12 -> -2.281021898 | U12: =$S$1*P12/Q12 -> 2.281021898
A13: 0 | B13: 1 | C13: 1 | D13: 1 | F13: 0 | G13: 1 | H13: 0 | I13: 0 | J13: 0 | K13: 10 | L13: 0 | M13: 0 | O13: =MMULT(A13:D13,$J$17:$M$20) -> -5 | P13: 5 | Q13: 53.84 | R13: 1 | T13: =$S$1*O13/Q13 -> -1.857355126 | U13: =$S$1*P13/Q13 -> 1.857355126
F14: =-SIN(G11) -> 2.45029691e-16 | G14: 0 | H14: =COS(G11) -> 1 | I14: 0 | J14: 2.45029691e-15 | K14: 0 | L14: 10 | M14: 0 | O14: =MMULT(A14:D14,$J$17:$M$20) -> 
A15: 1 | B15: 0 | C15: 0 | D15: 1 | F15: 0 | G15: 0 | H15: 0 | I15: 1 | J15: -5 | K15: -5 | L15: -5 | M15: 1 | O15: =MMULT(A15:D15,$J$17:$M$20) -> 5 | P15: -5 | Q15: 43.84 | R15: 1 | T15: =$S$1*O15/Q15 -> 2.281021898 | U15: =$S$1*P15/Q15 -> -2.281021898
A16: 1 | B16: 0 | C16: 1 | D16: 1 | F16: Translate matrix | O16: =MMULT(A16:D16,$J$17:$M$20) -> 5 | P16: -5 | Q16: 53.84 | R16: 1 | T16: =$S$1*O16/Q16 -> 1.857355126 | U16: =$S$1*P16/Q16 -> -1.857355126
F17: 1 | G17: 0 | H17: 0 | I17: 0 | J17: =MMULT(J12:M15,F17:I20) -> 10 | K17: 0 | L17: -2.45029691e-15 | M17: 0 | O17: =MMULT(A17:D17,$J$17:$M$20) ->  | T17: =IF(ISERROR(O17),NA(),$S$1*O17/Q17) ->  | U17: =IF(ISERROR(P17),NA(),$S$1*P17/Q17) -> 
A18: 1 | B18: 1 | C18: 0 | D18: 1 | F18: 0 | G18: 1 | H18: 0 | I18: 0 | J18: 0 | K18: 10 | L18: 0 | M18: 0 | O18: =MMULT(A18:D18,$J$17:$M$20) -> 5 | P18: 5 | Q18: 43.84 | R18: 1 | T18: =$S$1*O18/Q18 -> 2.281021898 | U18: =$S$1*P18/Q18 -> 2.281021898
A19: 1 | B19: 1 | C19: 1 | D19: 1 | F19: 0 | G19: 0 | H19: 1 | I19: 0 | J19: 2.45029691e-15 | K19: 0 | L19: 10 | M19: 0 | O19: =MMULT(A19:D19,$J$17:$M$20) -> 5 | P19: 5 | Q19: 53.84 | R19: 1 | T19: =$S$1*O19/Q19 -> 1.857355126 | U19: =$S$1*P19/Q19 -> 1.857355126
F20: 0 | G20: 0 | H20: 48.84 | I20: 1 | J20: -5 | K20: -5 | L20: 43.84 | M20: 1 | O20: =MMULT(A20:D20,$J$17:$M$20) -> 
J24: mmult
R29: =#N/A -> 
R30: =R20 -> 
R31: =error.type -> 

Sheet Sheet2
A1: 1 | B1: 7
A2: 20 | B2: 3
A3: =null -> 
A4: 3 | B4: 5
A5: 7 | B5: 2

Sheet Sheet1_2
A1: 120 | B1: 150 | C1: 20 | D1: 1 | F1: Translate matrix | O1: =MMULT(A1:D1,$J$27:$M$30) -> 63.05225431 | P1: -32.09797266 | Q1: 267.7450444 | R1: 1 | S1: 4 | T1: =$S$1*O1/Q1 -> 0.9419745483 | U1: =$S$1*P1/Q1 -> -0.479530409
A2: 70 | B2: 60 | C2: 70 | D2: 1 | F2: 1 | G2: 0 | H2: 0 | I2: 0 | O2: =MMULT(A2:D2,$J$27:$M$30) -> 212.7365964 | P2: 72.5692896 | Q2: 405.7282388 | R2: 1 | T2: 2.097330932 | U2: 0.715447264
A3: 120 | B3: 20 | C3: 20 | D3: 1 | F3: 0 | G3: 1 | H3: 0 | I3: 0 | O3: =MMULT(A3:D3,$J$27:$M$30) -> 317.3706305 | P3: -17.15248987 | Q3: 319.6949825 | R3: 1 | T3: 3.970917879 | U3: -0.2146106859
A4: 120 | B4: 150 | C4: 20 | D4: 1 | F4: 0 | G4: 0 | H4: 1 | I4: 0 | O4: =MMULT(A4:D4,$J$27:$M$30) -> 63.05225431 | P4: -32.09797266 | Q4: 267.7450444 | R4: 1 | T4: 0.9419745483 | U4: -0.479530409
D5: 1 | F5: -70 | G5: -60 | H5: -0.5 | I5: 1 | O5: =MMULT(A5:D5,$J$27:$M$30) -> 
A6: 140 | B6: 0 | C6: 0 | D6: 1 | F6: Scale matrix | G6: 2 | H6: 360 | J6: mmult | O6: =MMULT(A6:D6,$J$27:$M$30) -> 367.049425 | P6: -52.58134065 | Q6: 286.8801397 | R6: 1 | T6: 5.117808788 | U6: -0.7331471703
A7: 140 | B7: 270 | C7: 0 | D7: 1 | F7: =G6 -> 2 | G7: 0 | H7: 0 | I7: 0 | J7: =MMULT(F2:I5,F7:I10) -> 2 | K7: 0 | L7: 0 | M7: 0 | O7: =MMULT(A7:D7,$J$27:$M$30) -> -161.1502794 | P7: -83.62195875 | Q7: 178.9841142 | R7: 1 | T7: -3.601443181 | U7: -1.868812975
A8: 120 | B8: 270 | C8: 0 | D8: 1 | F8: 0 | G8: =G6 -> 2 | H8: 0 | I8: 0 | J8: 0 | K8: 2 | L8: 0 | M8: 0 | O8: =MMULT(A8:D8,$J$27:$M$30) -> -169.0230572 | P8: -85.76985748 | Q8: 218.1428412 | R8: 1 | T8: -3.099309723 | U8: -1.572728346
A9: 120 | B9: 0 | C9: 0 | D9: 1 | F9: 0 | G9: 0 | H9: =G6 -> 2 | I9: 0 | J9: 0 | K9: 0 | L9: 2 | M9: 0 | O9: =MMULT(A9:D9,$J$27:$M$30) -> 359.1766472 | P9: -54.72923939 | Q9: 326.0388667 | R9: 1 | T9: 4.406550064 | U9: -0.6714443581
A10: 140 | B10: 0 | C10: 0 | D10: 1 | F10: 0 | G10: 0 | H10: 0 | I10: 1 | J10: -140 | K10: -120 | L10: -1 | M10: 1 | O10: =MMULT(A10:D10,$J$27:$M$30) -> 367.049425 | P10: -52.58134065 | Q10: 286.8801397 | R10: 1 | T10: 5.117808788 | U10: -0.7331471703
F11: Rotate matrix | G11: =H11/360*2*PI() -> -2.813470701 | H11: -161.1999969 | J11: mmult | O11: =MMULT(A11:D11,$J$27:$M$30) -> 
A12: 20 | B12: 270 | C12: 0 | D12: 1 | F12: =COS(G11) -> -0.946649243 | G12: 0 | H12: =SIN(G11) -> -0.3222657457 | I12: 0 | J12: =MMULT(J7:M10,F12:I15) -> -1.893298486 | K12: 0 | L12: -0.6445314913 | M12: 0 | O12: =MMULT(A12:D12,$J$27:$M$30) -> -208.3869462 | P12: -96.50935117 | Q12: 413.9364763 | R12: 1 | T12: -2.013709428 | U12: -0.9326005965
A13: 20 | B13: 0 | C13: 0 | D13: 1 | F13: 0 | G13: 1 | H13: 0 | I13: 0 | J13: 0 | K13: 2 | L13: 0 | M13: 0 | O13: =MMULT(A13:D13,$J$27:$M$30) -> 319.8127582 | P13: -65.46873308 | Q13: 521.8325017 | R13: 1 | T13: 2.451459096 | U13: -0.501837144
A14: 0 | B14: 0 | C14: 0 | D14: 1 | F14: =-SIN(G11) -> 0.3222657457 | G14: 0 | H14: =COS(G11) -> -0.946649243 | I14: 0 | J14: 0.6445314913 | K14: 0 | L14: -1.893298486 | M14: 0 | O14: =MMULT(A14:D14,$J$27:$M$30) -> 311.9399804 | P14: -67.61663181 | Q14: 560.9912287 | R14: 1 | T14: 2.224205759 | U14: -0.4821225599
A15: 0 | B15: 270 | C15: 0 | D15: 1 | F15: 0 | G15: 0 | H15: 0 | I15: 1 | J15: 132.2086283 | K15: -120 | L15: 46.06385363 | M15: 1 | O15: =MMULT(A15:D15,$J$27:$M$30) -> -216.259724 | P15: -98.65724991 | Q15: 453.0952033 | R15: 1 | T15: -1.9091769 | U15: -0.8709626515
A16: 20 | B16: 270 | C16: 0 | D16: 1 | F16: Rotate matrix | G16: =H16/360*2*PI() -> 1.780235837 | H16: 102 | J16: mmult | O16: =MMULT(A16:D16,$J$27:$M$30) -> -208.3869462 | P16: -96.50935117 | Q16: 413.9364763 | R16: 1 | T16: -2.013709428 | U16: -0.9326005965
A17: 20 | B17: 0 | C17: 0 | D17: 1 | F17: =COS(G16) -> -0.2079116908 | G17: =SIN(G16) -> 0.9781476007 | H17: 0 | I17: 0 | J17: =MMULT(J12:M15,F17:I20) -> 0.3936388894 | K17: -1.851925371 | L17: -0.6445314913 | M17: 0 | O17: =MMULT(A17:D17,$J$27:$M$30) -> 319.8127582 | P17: -65.46873308 | Q17: 521.8325017 | R17: 1 | T17: 2.451459096 | U17: -0.501837144
F18: =-SIN(G16) -> -0.9781476007 | G18: =COS(G16) -> -0.2079116908 | H18: 0 | I18: 0 | J18: -1.956295201 | K18: -0.4158233816 | L18: 0 | M18: 0 | O18: =MMULT(A18:D18,$J$27:$M$30) -> 
A19: 20 | B19: 20 | C19: 20 | D19: 1 | F19: 0 | G19: 0 | H19: 1 | I19: 0 | J19: -0.1340056321 | K19: 0.6304469318 | L19: -1.893298486 | M19: 0 | O19: =MMULT(A19:D19,$J$27:$M$30) -> 278.0067416 | P19: -27.89198356 | Q19: 515.4886176 | R19: 1 | T19: 2.157228944 | U19: -0.2164314214
A20: 70 | B20: 60 | C20: 70 | D20: 1 | F20: 0 | G20: 0 | H20: 0 | I20: 1 | J20: 89.88999264 | K20: 154.2689554 | L20: 46.06385363 | M20: 1 | O20: =MMULT(A20:D20,$J$27:$M$30) -> 212.7365964 | P20: 72.5692896 | Q20: 405.7282388 | R20: 1 | T20: 2.097330932 | U20: 0.715447264
A21: 20 | B21: 150 | C21: 20 | D21: 1 | F21: Rotate matrix | G21: =H21/360*2*PI() -> 1.290670929 | H21: 73.94999695 | J21: mmult | O21: =MMULT(A21:D21,$J$27:$M$30) -> 23.68836536 | P21: -42.83746635 | Q21: 463.5386794 | R21: 1 | T21: 0.2044132791 | U21: -0.3696560244
A22: 120 | B22: 150 | C22: 20 | D22: 1 | F22: 1 | G22: 0 | H22: 0 | I22: 0 | J22: =MMULT(J17:M20,F22:I25) -> 0.3936388894 | K22: 0.1073949369 | L22: -1.95793635 | M22: 0 | O22: =MMULT(A22:D22,$J$27:$M$30) -> 63.05225431 | P22: -32.09797266 | Q22: 267.7450444 | R22: 1 | T22: 0.9419745483 | U22: -0.479530409
F23: 0 | G23: =COS(G21) -> 0.276476161 | H23: =SIN(G21) -> 0.9610207763 | I23: 0 | J23: -1.956295201 | K23: -0.1149652522 | L23: -0.399614909 | M23: 0 | O23: =MMULT(A23:D23,$J$27:$M$30) -> 
F24: 0 | G24: =-SIN(G21) -> -0.9610207763 | H24: =COS(G21) -> 0.276476161 | I24: 0 | J24: -0.1340056321 | K24: 1.993802728 | L24: 0.08242070275 | M24: 0 | O24: =MMULT(A24:D24,$J$27:$M$30) -> 
A25: 20 | B25: 150 | C25: 20 | D25: 1 | F25: 0 | G25: 0 | H25: 0 | I25: 1 | J25: 89.88999264 | K25: -1.616631814 | L25: 160.9912287 | M25: 1 | O25: =MMULT(A25:D25,$J$27:$M$30) -> 23.68836536 | P25: -42.83746635 | Q25: 463.5386794 | R25: 1 | T25: 0.2044132791 | U25: -0.3696560244
A26: 20 | B26: 20 | C26: 20 | D26: 1 | F26: Translate matrix | J26: mmult | O26: =MMULT(A26:D26,$J$27:$M$30) -> 278.0067416 | P26: -27.89198356 | Q26: 515.4886176 | R26: 1 | T26: 2.157228944 | U26: -0.2164314214
A27: 120 | B27: 20 | C27: 20 | D27: 1 | F27: 1 | G27: 0 | H27: 0 | I27: 0 | J27: =MMULT(J22:M25,F27:I30) -> 0.3936388894 | K27: 0.1073949369 | L27: -1.95793635 | M27: 0 | O27: =MMULT(A27:D27,$J$27:$M$30) -> 317.3706305 | P27: -17.15248987 | Q27: 319.6949825 | R27: 1 | T27: 3.970917879 | U27: -0.2146106859
F28: 0 | G28: 1 | H28: 0 | I28: 0 | J28: -1.956295201 | K28: -0.1149652522 | L28: -0.399614909 | M28: 0 | O28: =MMULT(A28:D28,$J$27:$M$30) -> 
F29: 0 | G29: 0 | H29: 1 | I29: 0 | J29: -0.1340056321 | K29: 1.993802728 | L29: 0.08242070275 | M29: 0 | O29: =MMULT(A29:D29,$J$27:$M$30) -> 
A30: 70 | B30: 180 | C30: 50 | D30: 1 | F30: 222.0499878 | G30: -66 | H30: 400 | I30: 1 | J30: 311.9399804 | K30: -67.61663181 | L30: 560.9912287 | M30: 1 | O30: =MMULT(A30:D30,$J$27:$M$30) -> -19.33871517 | P30: 18.89740477 | Q30: 356.1260357 | R30: 1 | T30: -0.2172120343 | U30: 0.2122552454
A31: 80 | B31: 110 | C31: 50 | D31: 1 | O31: =MMULT(A31:D31,$J$27:$M$30) -> 121.5383378 | P31: 28.0189218 | Q31: 364.5197158 | R31: 1 | T31: 1.333681911 | U31: 0.3074612492
A32: 60 | B32: 110 | C32: 50 | D32: 1 | O32: =MMULT(A32:D32,$J$27:$M$30) -> 113.66556 | P32: 25.87102306 | Q32: 403.6784428 | R32: 1 | T32: 1.126298043 | U32: 0.2563527829
A33: 70 | B33: 180 | C33: 50 | D33: 1 | O33: =MMULT(A33:D33,$J$27:$M$30) -> -19.33871517 | P33: 18.89740477 | Q33: 356.1260357 | R33: 1 | T33: -0.2172120343 | U33: 0.2122552454
O34: =MMULT(A34:D34,$J$27:$M$30) -> 
A35: 60 | B35: 110 | C35: 50 | D35: 1 | O35: =MMULT(A35:D35,$J$27:$M$30) -> 113.66556 | P35: 25.87102306 | Q35: 403.6784428 | R35: 1 | T35: 1.126298043 | U35: 0.2563527829
A36: 80 | B36: 110 | C36: 50 | D36: 1 | O36: =MMULT(A36:D36,$J$27:$M$30) -> 121.5383378 | P36: 28.0189218 | Q36: 364.5197158 | R36: 1 | T36: 1.333681911 | U36: 0.3074612492
O37: =MMULT(A37:D37,$J$27:$M$30) -> 
A38: 70 | B38: 180 | C38: 50 | D38: 1 | O38: =MMULT(A38:D38,$J$27:$M$30) -> -19.33871517 | P38: 18.89740477 | Q38: 356.1260357 | R38: 1 | T38: -0.2172120343 | U38: 0.2122552454
A39: 70 | B39: 90 | C39: 60 | D39: 1 | O39: =MMULT(A39:D39,$J$27:$M$30) -> 155.3877966 | P39: 49.18230475 | Q39: 392.9155845 | R39: 1 | T39: 1.581894969 | U39: 0.5006908016
A40: 60 | B40: 110 | C40: 50 | D40: 1 | O40: =MMULT(A40:D40,$J$27:$M$30) -> 113.66556 | P40: 25.87102306 | Q40: 403.6784428 | R40: 1 | T40: 1.126298043 | U40: 0.2563527829
O41: =MMULT(A41:D41,$J$27:$M$30) -> 
A42: 80 | B42: 110 | C42: 50 | D42: 1 | O42: =MMULT(A42:D42,$J$27:$M$30) -> 121.5383378 | P42: 28.0189218 | Q42: 364.5197158 | R42: 1 | T42: 1.333681911 | U42: 0.3074612492
A43: 70 | B43: 90 | C43: 60 | D43: 1 | O43: =MMULT(A43:D43,$J$27:$M$30) -> 155.3877966 | P43: 49.18230475 | Q43: 392.9155845 | R43: 1 | T43: =$S$1*O43/Q43 -> 1.581894969 | U43: =$S$1*P43/Q43 -> 0.5006908016
